fUST/lending_fUST_20250605
["ID","MTS","AMOUNT","RATE_DAILY","PERIOD"]
[364520879,1749125445879,-440.0,0.00019726,2]
[364520880,1749125445889,-390.0,0.00019726,2]
[364520881,1749125445900,-390.0,0.00019726,2]
[364520882,1749125445910,-231.99756612,0.00019726,2]
[364520883,1749125445920,-440.0,0.00019726,2]
[364520884,1749125445929,-440.0,0.00019726,2]
[364520885,1749125445939,-530.71,0.00019726,2]
[364520886,1749125445951,-440.0,0.00019726,2]
[364520887,1749125445960,-440.0,0.00019726,2]
[364520888,1749125445969,-440.0,0.00019726,2]
[364520889,1749125445979,-440.0,0.00019726,2]
[364520890,1749125445989,-949.76,0.00019726,2]
[364520891,1749125445999,-1001.21,0.00019726,2]
[364520892,1749125446008,-1249.24,0.00019726,2]
[364520893,1749125446018,-440.0,0.00019726,2]
[364520894,1749125446028,-450.8,0.00019726,2]
[364520895,1749125446039,-440.0,0.00019726,2]
[364520896,1749125446049,-440.0,0.00019726,2]
[364520897,1749125446059,-440.0,0.00019726,2]
[364520898,1749125446068,-440.0,0.00019726,2]
[364520899,1749125446079,-488.42531892,0.00019726,2]
[364520900,1749125446088,-1079.27,0.00019726,2]
[364520901,1749125446098,-878.12,0.00019726,2]
[364520902,1749125446112,-188.0,0.000198,2]
[364520903,1749125446122,-184.31999999,0.000198,2]
[364520904,1749125446132,-420.72,0.00019881,2]
[364520905,1749125446142,-1749.0370997,0.000199,2]
[364520906,1749125446152,-500.0,0.00019966,2]
[364520907,1749125446162,-23886.24022923,0.0002,2]
[364520908,1749125446172,-188.0,0.0002,3]
[364520910,1749125446182,-188.0,0.0002,3]
[364520911,1749125446191,-440.0,0.0002,2]
[364520912,1749125446202,-549.28,0.0002,2]
[364520913,1749125446212,-400.0,0.0002,2]
[364520915,1749125446225,-400.0,0.0002,2]
[364520916,1749125446236,-833.75,0.0002,2]
[364520917,1749125446246,-813.53,0.0002,2]
[364520918,1749125446256,-657.08,0.0002,2]
[364520919,1749125446266,-440.0,0.0002,2]
[364520920,1749125446275,-440.0,0.0002,2]
[364520922,1749125446284,-440.0,0.0002,2]
[364520923,1749125446294,-440.0,0.0002,2]
[364520924,1749125446303,-440.0,0.0002,2]
[364520925,1749125446313,-440.0,0.0002,2]
[364520926,1749125446323,-446.43,0.0002,2]
[364520927,1749125446333,-172.9079431,0.0002,2]
[364520928,1749125446344,-1204.79,0.0002,2]
[364520929,1749125446354,-440.0,0.0002,2]
[364520930,1749125446366,-440.0,0.0002,2]
[364520931,1749125446376,-522.06929597,0.0002,2]
[364520932,1749125446386,-440.0,0.0002,2]
[364520933,1749125446396,-1453.28,0.0002,2]
[364520934,1749125446405,-440.0,0.0002,2]
[364520935,1749125446415,-440.0,0.0002,2]
[364520936,1749125446425,-440.0,0.0002,2]
[364520937,1749125446435,-440.0,0.0002,2]
[364520938,1749125446444,-390.0,0.0002,2]
[364520939,1749125446456,-508.08,0.0002,2]
[364520940,1749125446466,-440.0,0.0002,2]
[364520941,1749125446475,-440.0,0.0002,2]
[364520942,1749125446485,-440.0,0.0002,2]
[364520944,1749125446495,-440.0,0.0002,2]
[364520945,1749125446504,-440.0,0.0002,2]
[364520946,1749125446514,-440.0,0.0002,2]
[364520947,1749125446524,-530.71,0.0002,2]
[364520948,1749125446534,-349.81676198,0.0002,2]
[364520949,1749125446543,-440.0,0.0002,2]
[364520950,1749125446553,-320.0,0.0002,2]
[364520951,1749125446562,-440.0,0.0002,2]
[364520952,1749125446571,-949.76,0.0002,2]
[364520953,1749125446581,-1001.21,0.0002,2]
[364520954,1749125446591,-1249.24,0.0002,2]
[364520955,1749125446601,-440.0,0.0002,2]
[364520956,1749125446610,-450.8,0.0002,2]
[364520957,1749125446620,-440.0,0.0002,2]
[364520958,1749125446629,-440.0,0.0002,2]
[364520959,1749125446639,-440.0,0.0002,2]
[364520960,1749125446648,-440.0,0.0002,2]
[364520962,1749125446657,-1079.27,0.0002,2]
[364520964,1749125446667,-878.12,0.0002,2]
[364520965,1749125446677,-1749.03709944,0.00020072,2]
[364520966,1749125446686,-242.272032,0.00020187,2]
[364520967,1749125446696,-1749.03709944,0.00020245,2]
[364520968,1749125446706,-440.0,0.00020273,2]
[364520969,1749125446715,-833.75,0.00020273,2]
[364520970,1749125446725,-813.53,0.00020273,2]
[364520971,1749125446734,-657.08,0.00020273,2]
[364520972,1749125446743,-440.0,0.00020273,2]
[364520973,1749125446753,-440.0,0.00020273,2]
[364520974,1749125446762,-390.0,0.00020273,2]
[364520975,1749125446771,-440.0,0.00020273,2]
[364520976,1749125446781,-440.0,0.00020273,2]
[364520977,1749125446790,-440.0,0.00020273,2]
[364520978,1749125446800,-446.43,0.00020273,2]
[364520979,1749125446810,-1204.79,0.00020273,2]
[364520980,1749125446820,-440.0,0.00020273,2]
[364520981,1749125446829,-320.0,0.00020273,2]
[364520982,1749125446839,-440.0,0.00020273,2]
[364520983,1749125446849,-1453.28,0.00020273,2]
[364520984,1749125446859,-320.0,0.00020273,2]
[364520985,1749125446868,-440.0,0.00020273,2]
[364520986,1749125446878,-406.38,0.00020273,2]
[364520987,1749125446887,-440.0,0.00020273,2]
[364520988,1749125446897,-508.08,0.00020273,2]
[364520989,1749125446906,-440.0,0.00020273,2]
[364520990,1749125446915,-320.0,0.00020273,2]
[364520991,1749125446925,-440.0,0.00020273,2]
[364520992,1749125446936,-390.0,0.00020273,2]
[364520993,1749125446947,-440.0,0.00020273,2]
[364520994,1749125446960,-530.71,0.00020273,2]
[364520995,1749125446970,-440.0,0.00020273,2]
[364520996,1749125446980,-440.0,0.00020273,2]
[364520997,1749125446990,-949.76,0.00020273,2]
[364520998,1749125447001,-1001.21,0.00020273,2]
[364520999,1749125447012,-1249.24,0.00020273,2]
[364521000,1749125447021,-440.0,0.00020273,2]
[364521001,1749125447032,-450.8,0.00020273,2]
[364521002,1749125447044,-440.0,0.00020273,2]
[364521003,1749125447054,-440.0,0.00020273,2]
[364521004,1749125447064,-440.0,0.00020273,2]
[364521005,1749125447073,-440.0,0.00020273,2]
[364521006,1749125447084,-1079.27,0.00020273,2]
[364521007,1749125447093,-878.12,0.00020273,2]
[364521008,1749125447102,-151.0,0.000203,3]
[364521009,1749125447112,-373.7273582,0.00020415,2]
[364521010,1749125447123,-364.646625,0.00020415,2]
[364521011,1749125447132,-364.646625,0.00020415,2]
[364521012,1749125447142,-1749.03709944,0.00020417,3]
[364521013,1749125447152,-440.0,0.00020547,2]
[364521014,1749125447162,-500.0,0.00020547,2]
[364521015,1749125447171,-833.75,0.00020547,2]
[364521016,1749125447181,-813.53,0.00020547,2]
[364521017,1749125447191,-657.08,0.00020547,2]
[364521018,1749125447200,-440.0,0.00020547,2]
[364521019,1749125447211,-440.0,0.00020547,2]
[364521020,1749125447220,-201.72380422,0.00020547,2]
[364521021,1749125447231,-517.28746273,0.00020547,2]
[364521022,1749125447240,-440.0,0.00020547,2]
[364521023,1749125447250,-446.43,0.00020547,2]
[364521024,1749125447261,-1204.79,0.00020547,2]
[364521025,1749125447270,-370.0,0.00020547,2]
[364521026,1749125447280,-303.75,0.00020547,2]
[364521027,1749125447289,-1453.28,0.00020547,2]
[364521028,1749125447298,-440.0,0.00020547,2]
[364521029,1749125447308,-440.0,0.00020547,2]
[364521030,1749125447317,-508.08,0.00020547,2]
[364521031,1749125447327,-440.0,0.00020547,2]
[364521032,1749125447337,-440.0,0.00020547,2]
[364521033,1749125447347,-440.0,0.00020547,2]
[364521034,1749125447357,-530.71,0.00020547,2]
[364521035,1749125447367,-440.0,0.00020547,2]
[364521036,1749125447376,-495.6,0.00020547,2]
[364521037,1749125447386,-949.76,0.00020547,2]
[364521038,1749125447395,-1001.21,0.00020547,2]
[364521039,1749125447406,-1249.24,0.00020547,2]
[364521040,1749125447415,-440.0,0.00020547,2]
[364521041,1749125447425,-450.8,0.00020547,2]
[364521042,1749125447434,-440.0,0.00020547,2]
[364521043,1749125447520,-440.0,0.00020547,2]
[364521044,1749125447530,-349.56,0.00020547,2]
[364521045,1749125447540,-440.0,0.00020547,2]
[364521046,1749125447549,-1079.27,0.00020547,2]
[364521047,1749125447559,-878.12,0.00020547,2]
[364521048,1749125447568,-871.24,0.0002058,10]
[364521049,1749125447578,-726.04,0.0002058,10]
[364521050,1749125447587,-605.03,0.0002058,10]
[364521051,1749125447598,-1749.03709944,0.0002059,3]
[364521052,1749125447607,-3681.27,0.000206,2]
[364521053,1749125447617,-151.0,0.000206,3]
[364521054,1749125447627,-2741.73,0.000206,2]
[364521055,1749125447636,-159.25827006,0.0002062,2]
[364521056,1749125447646,-1749.03709944,0.00020762,3]
[364521057,1749125447656,-440.0,0.00020821,2]
[364521058,1749125447666,-833.75,0.00020821,2]
[364521059,1749125447676,-813.53,0.00020821,2]
[364521060,1749125447686,-657.08,0.00020821,2]
[364521061,1749125447695,-440.0,0.00020821,2]
[364521062,1749125447705,-440.0,0.00020821,2]
[364521063,1749125447715,-312.61578185,0.00020821,2]
[364521064,1749125447724,-446.43,0.00020821,2]
[364521065,1749125447735,-1204.79,0.00020821,2]
[364521066,1749125447745,-1453.28,0.00020821,2]
[364521067,1749125447755,-168.3212153,0.00020821,2]
[364521068,1749125447765,-440.0,0.00020821,2]
[364521069,1749125447774,-508.08,0.00020821,2]
[364521070,1749125447784,-440.0,0.00020821,2]
[364521071,1749125447794,-370.0,0.00020821,2]
[364521072,1749125447803,-440.0,0.00020821,2]
[364521073,1749125447813,-530.71,0.00020821,2]
[364521074,1749125447823,-440.0,0.00020821,2]
[364521075,1749125447832,-949.76,0.00020821,2]
[364521076,1749125447842,-1001.21,0.00020821,2]
[364521077,1749125447852,-1249.24,0.00020821,2]
[364521078,1749125447862,-440.0,0.00020821,2]
[364521079,1749125447872,-450.8,0.00020821,2]
[364521080,1749125447882,-440.0,0.00020821,2]
[364521081,1749125447892,-440.0,0.00020821,2]
[364521082,1749125447903,-312.9160477,0.00020821,2]
[364521083,1749125447912,-1079.27,0.00020821,2]
[364521084,1749125447921,-878.12,0.00020821,2]
[364521085,1749125447931,-1749.03709944,0.00020934,4]
[364521086,1749125447941,-188.0,0.00021,5]
[364521087,1749125447953,-188.0,0.00021,5]
[364521088,1749125447962,-188.0,0.00021,5]
[364521089,1749125447973,-188.0,0.00021,5]
[364521090,1749125447982,-151.0,0.00021,3]
[364521091,1749125447992,-440.0,0.00021095,2]
[364521092,1749125448002,-371.87,0.00021095,3]
[364521093,1749125448012,-833.75,0.00021095,2]
[364521094,1749125448023,-813.53,0.00021095,2]
[364521095,1749125448033,-657.08,0.00021095,2]
[364521096,1749125448044,-440.0,0.00021095,2]
[364521097,1749125448054,-440.0,0.00021095,2]
[364521098,1749125448064,-446.43,0.00021095,2]
[364521099,1749125448074,-1204.79,0.00021095,2]
[364521100,1749125448084,-1453.28,0.00021095,2]
[364521101,1749125448094,-440.0,0.00021095,2]
[364521102,1749125448104,-508.08,0.00021095,2]
[364521103,1749125448114,-440.0,0.00021095,2]
[364521104,1749125448124,-440.0,0.00021095,2]
[364521105,1749125448135,-530.71,0.00021095,2]
[364521106,1749125448145,-440.0,0.00021095,2]
[364521107,1749125448155,-949.76,0.00021095,2]
[364521108,1749125448165,-1001.21,0.00021095,2]
[364521109,1749125448175,-1249.24,0.00021095,2]
[364521110,1749125448186,-440.0,0.00021095,2]
[364521111,1749125448197,-450.8,0.00021095,2]
[364521112,1749125448207,-358.2300002,0.00021095,2]
[364521113,1749125448217,-440.0,0.00021095,2]
[364521114,1749125448228,-1079.27,0.00021095,2]
[364521115,1749125448238,-878.12,0.00021095,2]
[364521116,1749125448248,-1749.03709944,0.00021107,4]
[364521117,1749125448258,-5440.27,0.00021156,2]
[364521118,1749125448268,-800.0,0.00021164,2]
[364521119,1749125448279,-1749.03709944,0.00021279,5]
[364521120,1749125448289,-3000.0,0.000213,2]
[364521121,1749125448300,-3000.0,0.0002131,2]
[364521122,1749125448310,-3000.0,0.0002132,2]
[364521123,1749125448320,-3000.0,0.0002133,2]
[364521124,1749125448330,-3000.0,0.0002134,2]
[364521125,1749125448340,-3000.0,0.0002135,2]
[364521126,1749125448350,-3000.0,0.0002136,2]
[364521127,1749125448361,-410.0,0.00021369,2]
[364521128,1749125448370,-833.75,0.00021369,2]
[364521129,1749125448381,-813.53,0.00021369,2]
[364521130,1749125448391,-657.08,0.00021369,2]
[364521131,1749125448401,-440.0,0.00021369,2]
[364521132,1749125448411,-440.0,0.00021369,2]
[364521133,1749125448420,-446.43,0.00021369,2]
[364521134,1749125448430,-1204.79,0.00021369,2]
[364521135,1749125448442,-1453.28,0.00021369,2]
[364521136,1749125448453,-440.0,0.00021369,2]
[364521137,1749125448463,-508.08,0.00021369,2]
[364521138,1749125448472,-440.0,0.00021369,2]
[364521139,1749125448482,-440.0,0.00021369,2]
[364521140,1749125448492,-530.71,0.00021369,2]
[364521141,1749125448501,-440.0,0.00021369,2]
[364521142,1749125448511,-949.76,0.00021369,2]
[364521143,1749125448520,-1001.21,0.00021369,2]
[364521144,1749125448530,-1249.24,0.00021369,2]
[364521145,1749125448539,-440.0,0.00021369,2]
[364521146,1749125448549,-450.8,0.00021369,2]
[364521148,1749125448558,-440.0,0.00021369,2]
[364521149,1749125448567,-1079.27,0.00021369,2]
[364521150,1749125448576,-878.12,0.00021369,2]
[364521151,1749125448586,-3000.0,0.0002137,2]
[364521152,1749125448595,-503.71372657,0.00021378,2]
[364521153,1749125448604,-500.0,0.00021378,2]
[364521154,1749125448613,-600.0,0.00021378,2]
[364521155,1749125448622,-3000.0,0.0002138,2]
[364521156,1749125448632,-3000.0,0.0002139,2]
[364521157,1749125448641,-3000.0,0.000214,2]
[364521158,1749125448651,-151.0,0.000214,3]
[364521159,1749125448660,-151.0,0.000214,3]
[364521160,1749125448670,-3000.0,0.0002141,2]
[364521161,1749125448679,-3000.0,0.0002142,2]
[364521162,1749125448690,-3000.0,0.0002143,2]
[364521163,1749125448699,-3000.0,0.0002144,2]
[364521164,1749125448709,-507.57968082,0.00021445,2]
[364521165,1749125448719,-3000.0,0.0002145,2]
[364521166,1749125448728,-1749.03709944,0.00021452,5]
[364521167,1749125448738,-3000.0,0.0002146,2]
[364521168,1749125448747,-3000.0,0.0002147,2]
[364521169,1749125448756,-500.0,0.00021473,2]
[364521170,1749125448766,-3000.0,0.0002148,2]
[364521171,1749125448775,-3000.0,0.0002149,2]
[364521172,1749125448784,-213.99632772,0.00021499,2]
[364521173,1749125448793,-3000.0,0.000215,2]
[364521174,1749125448802,-1717.6837509,0.00021509,3]
[364521175,1749125448811,-268805.996,0.00021509,2]
[364521176,1749125448821,-3000.0,0.0002151,2]
[364521177,1749125448830,-3000.0,0.0002152,2]
[364521178,1749125448839,-3000.0,0.0002153,2]
[364521179,1749125448848,-3000.0,0.0002154,2]
[364521180,1749125448857,-3000.0,0.0002155,2]
[364521181,1749125448867,-3000.0,0.0002156,2]
[364521182,1749125448876,-3000.0,0.0002157,2]
[364521183,1749125448886,-500.0,0.00021573,2]
[364521184,1749125448895,-500.0,0.00021573,2]
[364521185,1749125448904,-500.0,0.00021573,2]
[364521186,1749125448914,-504.67081318,0.00021573,2]
[364521187,1749125448923,-500.0,0.00021573,2]
[364521188,1749125448932,-500.0,0.00021573,2]
[364521189,1749125448942,-500.0,0.00021573,2]
[364521190,1749125448953,-267.00703625,0.00021573,2]
[364521191,1749125448962,-3000.0,0.0002158,2]
[364521192,1749125448972,-3000.0,0.0002159,2]
[364521193,1749125448981,-3000.0,0.000216,2]
[364521194,1749125448990,-3000.0,0.0002161,2]
[364521195,1749125449000,-292.488006,0.0002161,2]
[364521196,1749125449009,-151.0,0.0002161,2]
[364521197,1749125449018,-3000.0,0.0002162,2]
[364521198,1749125449028,-1749.03709944,0.00021624,5]
[364521199,1749125449037,-3000.0,0.0002163,2]
[364521200,1749125449047,-3000.0,0.0002164,2]
[364521201,1749125449057,-833.75,0.00021643,2]
[364521202,1749125449141,-813.53,0.00021643,2]
[364521203,1749125449151,-657.08,0.00021643,2]
[364521204,1749125449161,-433.45817324,0.00021643,2]
[364521205,1749125449179,-6.54182676,0.00021643,2]
[364521206,1749125449191,-440.0,0.00021643,2]
[364521207,1749125449202,-446.43,0.00021643,2]
[364521208,1749125449212,-1204.79,0.00021643,2]
[364521209,1749125449222,-1453.28,0.00021643,2]
[364521210,1749125449232,-403.07154076,0.00021643,2]
[364521211,1749125449260,-36.92845924,0.00021643,2]
[364521212,1749125449270,-508.08,0.00021643,2]
[364521213,1749125449279,-440.0,0.00021643,2]
[364521214,1749125449289,-566.06,0.00021643,2]
[364521215,1749125449299,-530.71,0.00021643,2]
[364521216,1749125449309,-440.0,0.00021643,2]
[364521217,1749125449318,-949.76,0.00021643,2]
[364521218,1749125449327,-1001.21,0.00021643,2]
[364521219,1749125449337,-1222.93057707,0.00021643,2]
[364521220,1749125449352,-26.30942293,0.00021643,2]
[364521221,1749125449362,-440.0,0.00021643,2]
[364521222,1749125449372,-131.64381356,0.00021643,2]
[364521223,1749125449384,-319.15618644,0.00021643,2]
[364521224,1749125449393,-440.0,0.00021643,2]
[364521225,1749125449403,-1079.27,0.00021643,2]
[364521226,1749125449413,-878.12,0.00021643,2]
[364521227,1749125449423,-161.0182729,0.00021648,2]
[364521228,1749125449432,-3685.23952,0.0002165,2]
[364521229,1749125449442,-207.4,0.00021686,2]
[364521230,1749125449451,-1749.03709944,0.00021797,6]
[364521231,1749125449461,-3681.27,0.000218,2]
[364521232,1749125449470,-151.0,0.000218,4]
[364521233,1749125449479,-151.0,0.000218,3]
[364521234,1749125449489,-151.0,0.000218,3]
[364521235,1749125449499,-2741.73,0.000218,2]
[364521236,1749125449508,-159.25827006,0.00021803,2]
[364521237,1749125449519,-258.91856938,0.00021877,2]
[364521238,1749125449528,-500.0,0.00021917,2]
[364521239,1749125449537,-833.75,0.00021917,2]
[364521240,1749125449547,-813.53,0.00021917,2]
[364521241,1749125449557,-657.08,0.00021917,2]
[364521242,1749125449567,-440.0,0.00021917,2]
[364521243,1749125449578,-440.0,0.00021917,2]
[364521244,1749125449588,-446.43,0.00021917,2]
[364521245,1749125449598,-1204.79,0.00021917,2]
[364521246,1749125449607,-1164.06543535,0.00021917,2]
[364521247,1749125449790,-440.0,0.00018356,2]
[364521248,1749125449799,-440.0,0.0001863,2]
[364521249,1749125449809,-440.0,0.00018904,2]
[364521250,1749125449818,-289.21456465,0.00021917,2]
[364521251,1749125449827,-440.0,0.00021917,2]
[364521252,1749125449836,-508.08,0.00021917,2]
[364521253,1749125449845,-440.0,0.00021917,2]
[364521254,1749125449854,-151.0,0.00021917,2]
[364521255,1749125449864,-530.71,0.00021917,2]
[364521256,1749125449874,-440.0,0.00021917,2]
[364521257,1749125449882,-949.76,0.00021917,2]
[364521258,1749125449892,-1001.21,0.00021917,2]
[364521259,1749125449901,-1249.24,0.00021917,2]
[364521260,1749125449911,-397.52,0.00021917,2]
[364521261,1749125449920,-450.8,0.00021917,2]
[364521262,1749125449929,-440.0,0.00021917,2]
[364521263,1749125449938,-1079.27,0.00021917,2]
[364521264,1749125449949,-878.12,0.00021917,2]
[364521265,1749125449960,-151.0,0.00021917,2]
[364521266,1749125449970,-1000.0,0.00021926,2]
[364521267,1749125449979,-1200.0,0.00021926,2]
[364521268,1749125449988,-500.0,0.00021967,2]
[364521269,1749125449998,-500.0,0.00021967,2]
[364521270,1749125450007,-500.0,0.00021967,2]
[364521271,1749125450016,-500.0,0.00021967,2]
[364521272,1749125450026,-500.0,0.00021967,2]
[364521273,1749125450035,-500.98536793,0.00021967,2]
[364521274,1749125450045,-500.0,0.00021979,2]
[364521275,1749125450054,-500.0,0.00021979,2]
[364521276,1749125450064,-188.0,0.00022,7]
[364521277,1749125450073,-188.0,0.00022,7]
[364521278,1749125450082,-500.73133342,0.00022,2]
[364521279,1749125450091,-151.0,0.00022,7]
[364521280,1749125450102,-151.0,0.00022,7]
[364521281,1749125450110,-151.0,0.00022,7]
[364521282,1749125450120,-151.0,0.00022,7]
[364521283,1749125450129,-151.0,0.00022,7]
[364521284,1749125450138,-151.0,0.00022,7]
[364521285,1749125450147,-1000.0,0.00022021,2]
[364521286,1749125450157,-154.88,0.00022043,2]
[364521287,1749125450166,-962.0,0.00022043,2]
[364521288,1749125450175,-709.0,0.00022043,2]
[364521289,1749125450185,-2225.0,0.00022043,2]
[364521290,1749125450194,-406.0,0.00022043,2]
[364521291,1749125450203,-1000.0,0.00022121,2]
[364521292,1749125450213,-1003.27683097,0.00022121,2]
[364521293,1749125450222,-1000.0,0.00022121,2]
[364521294,1749125450231,-298.774663,0.00022125,7]
[364521295,1749125450241,-151.0,0.00022125,7]
[364521296,1749125450250,-159.89887137,0.00022137,2]
[364521297,1749125450259,-500.0,0.00022173,2]
[364521298,1749125450268,-500.0,0.00022173,2]
[364521299,1749125450278,-503.2118004,0.00022173,2]
[364521300,1749125450288,-500.0,0.00022173,2]
[364521301,1749125450297,-328.55184798,0.00022173,2]
[364521302,1749125450307,-500.0,0.00022173,2]
[364521303,1749125450316,-500.92514887,0.00022173,2]
[364521304,1749125450326,-152.590274,0.00022173,2]
[364521305,1749125450335,-503.80741175,0.00022173,2]
[364521306,1749125450345,-163.5396541,0.00022173,2]
[364521307,1749125450354,-500.27058007,0.00022173,2]
[364521308,1749125450363,-500.0,0.00022173,2]
[364521309,1749125450374,-500.0,0.00022173,2]
[364521310,1749125450384,-500.0,0.00022173,2]
[364521311,1749125450394,-373.73774662,0.00022173,2]
[364521312,1749125459125,327.2,0.00025,120]
[364521315,1749125464055,244.023016,0.00013699,2]
[364521317,1749125604430,273.0,0.00024267,120]
[364521318,1749125696475,430.09800826,0.00025,120]
[364521332,1749126376114,500.0,0.00025,120]
[364521342,1749126520161,17526.626105,0.00024297,120]
[364521347,1749126604273,21551.73370542,0.00023,120]
[364521378,1749126632615,-153.77909084,0.000168,2]
[364521379,1749126632625,-3364.52771083,0.00017205,2]
[364521380,1749126632635,-1211.7,0.00017244,2]
[364521381,1749126632644,-162.6384244,0.00017351,2]
[364521382,1749126632654,-592.86962466,0.00017999,2]
[364521383,1749126632898,-607.13037534,0.00017999,2]
[364521384,1749126632907,-300.0,0.00017999,2]
[364521385,1749126632916,-300.0,0.00017999,2]
[364521386,1749126632925,-300.0,0.00017999,2]
[364521387,1749126632935,-3320.44697904,0.00018,2]
[364521388,1749126632945,-10068.43411841,0.00018,2]
[364521389,1749126632955,-12810.20161583,0.00018256,2]
[364521390,1749126632965,-2007.43511672,0.00018256,2]
[364521391,1749126632974,-715.45407173,0.00018256,2]
[364521392,1749126632984,-364.74796763,0.00018277,2]
[364521393,1749126632994,-300.0,0.00018343,2]
[364521394,1749126633004,-216.719,0.00018355,2]
[364521395,1749126633013,-500.0,0.00018356,2]
[364521396,1749126633023,-440.0,0.00018356,2]
[364521397,1749126633032,-440.0,0.00018356,2]
[364521398,1749126633042,-440.0,0.00018356,2]
[364521399,1749126633051,-440.0,0.00018356,2]
[364521400,1749126633061,-440.0,0.00018356,2]
[364521401,1749126633071,-440.0,0.00018356,2]
[364521402,1749126633081,-420.0,0.00018356,2]
[364521403,1749126633091,-440.0,0.00018356,2]
[364521404,1749126633103,-332.00300017,0.00018356,2]
[364521405,1749126633112,-440.0,0.00018356,2]
[364521406,1749126633122,-163.76318109,0.00018356,2]
[364521407,1749126633132,-194.55593934,0.00018356,2]
[364521408,1749126633142,-440.0,0.00018356,2]
[364521409,1749126633152,-440.0,0.00018356,2]
[364521410,1749126633161,-515.40365239,0.00018356,2]
[364521411,1749126633171,-440.0,0.00018356,2]
[364521412,1749126633181,-440.0,0.00018356,2]
[364521413,1749126633191,-450.0,0.00018356,2]
[364521414,1749126633201,-440.0,0.00018356,2]
[364521415,1749126633211,-440.0,0.00018356,2]
[364521416,1749126633220,-440.0,0.00018356,2]
[364521417,1749126633230,-430.0,0.00018356,2]
[364521418,1749126633239,-501.67811651,0.00018356,2]
[364521419,1749126633250,-254.85964708,0.00018356,2]
[364521420,1749126633260,-440.0,0.00018356,2]
[364521421,1749126633269,-440.0,0.00018356,2]
[364521422,1749126633279,-533.63100393,0.00018356,2]
[364521423,1749126633289,-420.0,0.00018356,2]
[364521424,1749126633298,-440.0,0.00018356,2]
[364521425,1749126633308,-440.0,0.00018356,2]
[364521426,1749126633318,-440.0,0.00018356,2]
[364521427,1749126633327,-490.0,0.00018356,2]
[364521428,1749126633336,-440.0,0.00018356,2]
[364521429,1749126633346,-420.0,0.00018356,2]
[364521430,1749126633358,-440.0,0.00018356,2]
[364521431,1749126633371,-430.0,0.00018356,2]
[364521432,1749126633381,-432.42901858,0.00018356,2]
[364521433,1749126633391,-430.0,0.00018356,2]
[364521434,1749126633402,-440.0,0.00018356,2]
[364521435,1749126633412,-431.413275,0.00018356,2]
[364521436,1749126633422,-411.0614052,0.00018356,2]
[364521437,1749126633433,-440.0,0.00018356,2]
[364521438,1749126633444,-430.0,0.00018356,2]
[364521439,1749126633454,-440.0,0.00018356,2]
[364521440,1749126633464,-430.0,0.00018356,2]
[364521441,1749126633474,-403.13934734,0.00018356,2]
[364521442,1749126633484,-490.67206302,0.00018356,2]
[364521443,1749126633494,-440.0,0.00018356,2]
[364521444,1749126633504,-413.8319369,0.00018356,2]